Workbook

Sheet General Info
B4: ARLINGTON COUNTY GOVERNMENT, VA | C4: Insert Offeror Name Here
B5: 23-HRD-RFP 608
A7: Client Information | D7: Comments
A8: 01 | B8: Client Name | C8: Arlington County Government
A9: 02 | B9: Client Address, City, State, and ZIP Code | C9: 2100 Clarendon Blvd, Ste. 511 Arlington, VA 22201
A10: 03 | B10: Where is the group sitused (legal jurisdiction)? | C10: VA
A11: 04 | B11: Industry (SIC) Code | C11: 9111
A12: 05 | B12: Industry Description | C12: Public / Government Entity
A13: 10a | B13: If yes, when can client team provide benefit summary reflecting alternative plan design? | E13: REvise
A14: 11 | B14: Do you want to allow carriers to submit alternative quotes? Default is to not allow vendors to provide alternate plan designs. | E14: REvise
A15: 12 | B15: Will Performance Guarantees be required? | E15: REvise
A16: 13 | B16: Are there are any Rate Guarantees or Rate Caps in place? | C16: Move down under Plan Information beginning row 63, | E16: REvise
A17: 14 | B17: Is a Risk Questionnaire required? | E17: REvise
A18: 14a | B18: If the answer if yes, when will the Client Team provide a current Risk Questionnaire signed by the client? | E18: REvise
A19: 14b | B19: Will all vendors accept this version or will a carrier-specific form be required (e.g. Blue Cross)? | E19: REvise
A20: 14c | B20: If a carrier-specific form is needed when will it be provided from the Client Team? | E20: REvise
A21: 15 | B21: A Pre-Implementation Audit funded by new vendor will be automatically requested as part of the questionnaire. Standard request is for $25,000. Confirm that audit will be included, "Y" or "N" | E21: REvise
A22: 16 | B22: When will the client team provide an updated de-identified census file in Excel format? (See Client Team Data Request Tab). | E22: REvise
A23: 17 | B23: Does the client team have additional requests to be added to questionnaire? If yes, will need to be provided prior to release in order to incorporate within RFP. | E23: REvise
A24: Commission Information | D24: Comments
A25: 01 | B25: Commission Basis (Fee, Commission, Other) | C25: 0%
A26: Plan Information (Complete rows 34-61, then click the "Update Plan Tabs" button) | D26: Comments
A28: 01 | B28: Plan Name & Type | C28: Basic Life/AD&D
A29: 01a | B29: ="Will "&PlanName1&" be marketed?" -> Will Basic Life/AD&D be marketed? | C29: Yes
A30: 01b | B30: Please indicate how many different Basic Life/AD&D plans will be marketed | C30: 2
A31: 02 | B31: Plan Year Effective Date | C31: 2024-01-01
A32: 03 | B32: Should the proposed plan design match the current plan design? | C32: Yes
A33: 03a | B33: If a quoting vendor cannot exactly match the current plan design, will you accept plan design deviations? | C33: Yes
A34: 04 | B34: Do you want to include a proposed or alternate plan design to be quoted? If so, see Alternate/Proposed Plan Design under "Documents" | C34: Yes
A36: 01 | B36: Plan Name & Type | C36: Voluntary Life/AD&D
A37: 01a | B37: ="Will "&C36&" be marketed?" -> Will Voluntary Life/AD&D be marketed? | C37: Yes
A38: 02 | B38: Plan Year Effective Date | C38: 2024-01-01
A39: 03 | B39: Should the proposed plan design match the current plan design? | C39: Yes
A40: 03a | B40: If a quoting vendor cannot exactly match the current plan design, will you accept plan design deviations? | C40: Yes
A42: 01 | B42: Plan Name & Type | C42: Long Term Disability
A43: 01a | B43: ="Will "&C42&" be marketed?" -> Will Long Term Disability be marketed? | C43: Yes
A44: 02 | B44: Plan Year Effective Date | C44: 2024-01-01
A45: 03 | B45: Should the proposed plan design match the current plan design? | C45: Yes
A46: 03a | B46: If a quoting vendor cannot exactly match the current plan design, will you accept plan design deviations? | C46: Yes
A47: 04 | B47: Do you want to include a proposed or alternate plan design to be quoted? If so, see Alternate/Proposed Plan Design under "Documents" | C47: Yes
A49: 01 | B49: Plan Name & Type | C49: Short Term Disability
A50: 01a | B50: ="Will "&C49&" be marketed?" -> Will Short Term Disability be marketed? | C50: No
A51: 02 | B51: Do you want to include a proposed or alternate plan design to be quoted? If so, see Alternate/Proposed Plan Design under "Documents" | C51: Managed inhouse
A52: Carrier History | D52: Comments
A53: 01 | B53: Has the client been with the incumbent for 3 years or more? | C53: Yes
A54: Is there anything else we should be aware of? (I.E. recent downsizing, union involvement, any special classes of employees or executive plans, etc.)?
A55: Union Employees and Retirees are part of the eligible population
A60: Note: Information provided in this RFP will be shared with Aon Consulting to assist in the evaluation

Sheet Account Personnel
A4: ARLINGTON COUNTY GOVERNMENT, VA | B4: Insert Offeror Name Here
C5: Vendor Response
A6: Carrier Information
A7: Carrier Legal Entity Name, as written on formal proposal document: | D7: *
A9: Primary Marketing Contact
A10: Name | D10: *
A12: Job Title | D12: *
A14: Office Address | B14: Address 1 | D14: *
B15: Address 2
B16: City | D16: *
B17: State | D17: *
B18: Zip Code | D18: *
A20: Phone Number | D20: *
A22: Fax Number | D22: *
A24: Email Address | D24: *
A26: Ongoing Account Manager
A27: Name
A29: Job Title
A31: Office Address | B31: Address 1
B32: Address 2
B33: City
B34: State
B35: Zip Code
A37: Phone Number
A39: Fax Number
A41: Email Address
A43: Number of Years in Current Position
A45: Number of Years Experience in Industry
A47: Average Size of Clients (e.g., 0-1000 ; 1000-4999 ; 5000-10,000 lives)
A49: Number of Current Clients Managed by this Account Manager
A51: Number of Local Government/State Government Clients Managed by this Account Manager
A53: Dedicated Claims Contact
A54: Name
A56: Job Title
A58: Office Address | B58: Address 1
B59: Address 2
B60: City
B61: State
B62: Zip Code
A64: Phone Number
A66: Fax Number
A68: Email Address
A70: Number of Years in Current Position
A72: Number of Years Experience in Industry
A74: Implementation Manager
A75: Name
A77: Job Title
A79: Number of Years with this Company in this Position
A81: Office Address | B81: Address 1
B82: Address 2
B83: City
B84: State
B85: Zip Code
A87: Phone Number
A89: Fax Number
A91: Email Address
A93: Percent of Implementation Manager's Time Available for our Client's Implementation
A95: Number of implementations completed with this company for clients of a similar size with similar products lines
A97: Note: Information provided in this RFP will be shared with an external consultant that is assisting with the evaluation.

Sheet Life & Disability General
B1: ARLINGTON COUNTY GOVERNMENT, VA | E1: Insert Offeror Name Here
B2: Product Group: Life and Disability General Questionnaire
B3: Product Type: Life and Disability General Questionnaire
B4: Questionnaire: General Questions
B6: General Questions >> Vendor Identification/Contacts | F6: Response
B8: Carrier Legal Name
B10: Carrier Marketing Name
B12: Primary Contact - Individual able to confirm questions around submitted responses | C12: Name
C13: Title
C14: Address
C15: Telephone #
C16: E-mail Address
B18: Additional Primary Contact | C18: Name
C19: Title
C20: Address
C21: Telephone #
C22: E-mail Address
B25: General Questions >> Financial - Underwriting Requirements/Premium Quotation
B27: Arlington County is requesting that the initial contract period is five years (January 1, 2024 through December 31, 2028) with 1 five-year renewal options following the initial contract period. Please confirm your agreement | E27: Yes No Other
C28: Other
B30: How many years are rates guaranteed? Recommending at least 5 years. | E30: 1 Year 2 Years 3 Years 4 Years 5 Years Other
C31: Other
B33: Vendor will provide a +/- 25% change in lives or volume caveat. | E33: Agree Disagree
B35: General Questions >> Minimum Criteria
B37: Please provide your Financial Ratings from A.M Best, Standard & Poor's, Moody's, Fitch, as issued since January 1, 2022.
C38: Explanation
B40: Vendor may not take exceptions to mandatory provisions of the draft Contract Terms and Conditions that are attached to this solicitation. Mandatory provisions are marked with an asterisk | E40: Agree Disagree
C41: Explanation
B43: State the year vendor began offering employer group life insurance
C44: Explanation
B46: The Offeror must directly provide all requested services | E46: Agree Disagree
B49: How many covered lives do you insure in your current life insurance book of business?
C50: Explanation
B52: How many covered lives do you insure in your current disability insurance book of business?
C53: Explanation
B56: General Questions >> Financial - Renewal Services
B58: Renewal rates (to be accompanied with an experience summary report) will be provided at least 180 days in advance of the contract anniversary date. | E58: Agree Disagree
B60: In the event of policy termination, vendor will be responsible for claims incurred prior to the termination date. The replacement vendor will have the responsibility to pay claims incurred after the termination date of the contact. | E60: Agree Disagree
B62: General Questions >> Legal/Contractual Considerations
B64: Define "actively at work". Please describe how employees on non-FMLA paid parental leave; Workers Comp are handled. | E64: Text
B66: Vendor's organization has complied with all state insurance department filing requirements for all plans/products being offered in this quote in each state in which the client has employees. | E66: Agree Disagree
B68: Vendor agrees that answers provided in the questionnaire will supersede any submitted carrier proposal. | E68: Agree Disagree
B70: Vendor unconditionally agrees to provide coverage to all present participants enrolled on the program effective date. No active employees or disabled employees shall lose coverage as a result of a change in vendor. | E70: Agree Disagree
B72: Vendor will provide "no loss, no gain" provision and will unconditionally provide continuous coverage to all current participants. | E72: Agree Disagree
B74: No statement of health or medical evidence will be imposed upon the initial group of covered employees for coverage amounts currently inforce. | E74: Agree Disagree
B76: All financial and claimant information will be kept confidential and will not be disclosed to any other party without the client's express approval. | E76: Agree Disagree
B78: Vendor certifies that it will comply with the Department of Labor's final claims procedure regulations, including the appropriate timeframes for (a) adjudicating claims, and (b) notice of appeal decisions. | E78: Agree Disagree
B80: Vendor agrees to monitor federal and state legislation affecting the delivery of plan benefits to participants and to report to the client on those issues in a timely fashion, prior to the effective date of any mandated plan changes. | E80: Agree Disagree
B82: General Questions >> Performance Guarantees- General
B84: The client is willing to negotiate performance standards on financial and service performance results with the selected proposer to encourage the proposer to provide superior performance. Carrier's failure to meet the performance guarantee(s) would result in a financial penalty. | E84: Agree Disagree
C85: Explanation
B88: Please provide an attached copy of your standard Performance Guarantees. | E88: Agree Disagree
C89: Explanation
B92: Vendor understands that County of Arlington will work to successfully negotiate the Performance Guarantees in advance of awarding the business | E92: Agree Disagree
C93: Explanation
B95: Confirm client can allocate the $ at risk across the metrics that are most important to them. | E95: Agree Disagree
B97: General Questions >> Performance Guarantees- Implementation & Account Management
B99: Please confirm your willingness to put 3% of premium at risk. If disagree, please specify. (Note: we are asking for the percentage without a cap, if there is a cap, please specify) | E99: Confirm Do not confirm - See explanation
C100: Explanation
B101: Is Account Management Performance Guarantee metric included? Is the metric based on Book of Business (BOB) or Client Specific (CS)? | E101: Included - Client Specific Included - Book of Business Not Included
B103: Is an Implementation Performance Guarantee metric included? Is the metric based on Book of Business (BOB) or Client Specific (CS)? | E103: Included - Client Specific Included - Book of Business Not Included
B105: Please confirm how the Implementation & Account Management Performance Guarantee is integrated into the plan specific Performance Guarantee. (Example: Separate, integrated within one coverage, spread across all coverages, etc.)
B107: Note: Information provided in this RFP will be shared with an external consultant that is assisting with the evaluation.

Sheet Life
B1: ARLINGTON COUNTY GOVERNMENT, VA | E1: Insert Offeror Name Here
B2: Product Group: Life Only Questionnaire
B3: Product Type: Life Only Questionnaire
B4: Questionnaire: Life Questions | F4: Response
B6: Life - Questions >> Life and AD&D
B8: Vendor confirms Life and/or AD&D pricing is valid on a standalone basis and not bundled with other product lines. | E8: Agree Disagree | K8: Agree | L8: Disagree
B10: Vendor agrees to duplicate all current benefits/provisions as described in this RFP and accompanying documentation. If vendor does not intend to duplicate the current plans exactly, all deviations will be specifically identified in the RFP response. | E10: Agree Disagree | K10: Yes | L10: No
B12: Is a single case filing required in order to match all of the current provisions? | E12: Yes No
B14: Vendor agrees there will be no exclusions (including suicide) applicable to basic life. | E14: Agree Disagree
B16: Are there any exclusions that apply to supplemental and dependent life? | E16: Yes No
B18: If no deviations are listed on the plan summary, the requested AD&D schedule has been quoted. | E18: Agree Disagree
B20: Child life benefit will begin at live birth. | E20: Agree Disagree
B22: Life - Questions >> Underwriting
B24: Is there a minimum participation requirement on the supplemental life?
B26: Vendor will provide a one time true open enrollment event up to the Guaranteed Issue Amount for all employees (including not enrolled)? | E26: Agree Disagree
B28: For employees, confirm the EOI rules for the following situations: | C28: Initial Open Enrollment: | E28: One level increase for all employees (including not enrolled) One level increase for currently enrolled employees only Up to the Guarantee Issue amount for all employees (including not enrolled) Up to the Guarantee Issue amount for currently enrolled employees only EOI Required Other
C29: Other
C30: Future Open Enrollments (Year 2 and beyond) | E30: One level increase for all employees (including not enrolled) One level increase for currently enrolled employees only Up to the Guarantee Issue amount for all employees (including not enrolled) Up to the Guarantee Issue amount for currently enrolled employees only EOI Required Other
C31: Other
C32: Qualified Status Change | E32: One level increase for all employees (including not enrolled) One level increase for currently enrolled employees only Up to the Guarantee Issue amount for all employees (including not enrolled) Up to the Guarantee Issue amount for currently enrolled employees only EOI Required Other
C33: Other
C34: Salary Increases | E34: Up to the Plan Maximum Up to the Guarantee Issue amount EOI Required Other
C35: Other
C36: Newly Eligible/New Hire | E36: Up to the Guarantee Issue amount EOI Required Other
C37: Other
B40: Today when an employee gets married, the spouse can only receive $5K without Guaranteed Issue. Arlington County would like the Spouse to receive up to $50K due to being newly eligible. | E40: Agree Disagree | K40: Yes | L40: No
B42: For spouses, confirm the EOI rules for the following situations: | C42: Initial Open Enrollment: | E42: One level increase for all employees (including not enrolled) One level increase for currently enrolled employees only Up to the Guarantee Issue amount for all employees (including not enrolled) Up to the Guarantee Issue amount for currently enrolled employees only EOI Required Other
C43: Other
C44: Future Open Enrollments (Year 2 and beyond) | E44: One level increase for all employees (including not enrolled) One level increase for currently enrolled employees only Up to the Guarantee Issue amount for all employees (including not enrolled) Up to the Guarantee Issue amount for currently enrolled employees only EOI Required Other
C45: Other
C46: Qualified Status Change | E46: One level increase for all employees (including not enrolled) One level increase for currently enrolled employees only Up to the Guarantee Issue amount for all employees (including not enrolled) Up to the Guarantee Issue amount for currently enrolled employees only EOI Required Other
C47: Other
C48: Other
C49: Newly Eligible/New Hire | E49: Up to the Guarantee Issue amount EOI Required Other
C50: Other
C51: Other
B53: EOI is not required for children | E53: Agree Disagree
B55: Life - Questions >> Administrative, Claims Processing and Operations
B57: Location of the office that would process claims for the client.
B59: Is an original copy of the certified death certificate required for claim submission? | E59: Yes No
B61: 12 month continuation of coverage provision included in quote. | E61: Agree Disagree
B63: Are the following value added services included in quoted pricing? | C63: Grief Counseling | E63: Included in pricing (5 face to face visits) Included in pricing (3 face to face visits) Included in pricing (no face to face visits) Available at additional charge Not available
C64: Grief Counseling | E64: Included in pricing (5 virtual visits) Included in pricing (unlimited virtual visits) Available at additional charge Not available
C65: Financial Counseling - for beneficiaries | E65: Included in pricing Available at additional charge Not available
C66: Will Preparation | E66: Included in pricing (includes in-person visit) Included in pricing (online only) Available at additional charge Not available
C67: Funeral Planning or Funeral Concierge | E67: Included in pricing Available at additional charge Not available
C68: Travel Assistance | E68: Included in pricing Available at additional charge Not available
C69: Identity Theft | E69: Included in pricing Available at additional charge Not available
C70: Financial Wellness - for living employees and their families | E70: Included in pricing Available at additional charge Not available
C71: Please list any other value adds or provide comments on the items above (available for all employees, beneficiaries only, etc.)
B73: Please confirm any interface files that are required for the administration of this program. | E73: Text
C74: Explanation
B77: Will you work with funeral homes directly when a funeral home assignment is in place? | E77: Text
C78: Explanation
B80: Please confirm your agreement to self billed payments. | E80: Text
C81: Explanation
B83: Identify life products that can be ported (Basic Life, Basic AD&D, Voluntary Life, Voluntary AD&D). | E83: Text
C84: Explanation
B86: Ported individuals continue to be covered by vendor following the termination of the group policy? | E86: Yes No
B88: 60 days will be provided for an employee to port or convert their coverage. | E88: Agree Disagree
B90: Is there a maximum age at which port coverage reduces and/or terminates? | E90: Yes No
B93: What is the maximum age at which an individual can elect to port coverage?
B95: Can employees port coverage that is lost at the time they retire?
C96: Explanation
B98: Can disabled individuals port their coverage?
C99: Explanation
B101: Are any of the provided services off-shored?
C102: Explanation
B103: Life - Questions >> Evidence of Insurability
B105: Can the employee complete EOI questionnaire online? | E105: Agree Disagree
C106: Explanation
B108: Can the employee can view EOI status online? | E108: Agree Disagree
C109: Explanation
B111: Please provide your approval rate for all EOI applications.
C112: Explanation
B114: Please provide your approval rate for online EOI.
C115: Explanation
B117: Confirm ability to customize EOI communication. | E117: Agree Disagree
C118: Explanation
B120: Confirm whether paramed EOI exams are required. | E120: Agree Disagree
C121: Explanation
B123: How are EOI approvals reported to the Employer? | E123: Text
C124: Explanation
B126: Confirm EOI approval confirmation with benefit amount is sent. | E126: Agree Disagree
C127: Explanation
B129: Approximately how many EOI questions are asked. | E129: Text
C130: Explanation
B132: How much time is provided for an employee or dependent to complete the EOI application? | E132: Text
C133: Explanation
B135: Life - Questions >> Claims Processing
B137: What are the modes of contact for customer inquiry for both claims and EOI: phone, email, website portal | E137: Text
C138: Explanation
B141: Mobile app intake available for claim submission? | E141: Agree Disagree
C142: Explanation
B145: Fillable PDF for employer to use for claim submission? | E145: Agree Disagree
C146: Explanation
B148: Email intake available for claim submission? | E148: Agree Disagree
C149: Explanation
B151: Intake portal available for claim submission? | E151: Agree Disagree
C152: Explanation
B154: Can employer can view claim status online? | E154: Agree Disagree
C155: Explanation
B157: Can beneficiaries view claim status online? | E157: Agree Disagree
C158: Explanation
B161: Please describe the employer claims reporting that is available. | E161: Text
C162: Explanation
B165: Confirm you will provide employer with a report that shows the claims processed per month. | E165: Text
C166: Explanation
K167: Agree, PGs will be based on client metrics
B168: Life - Questions >> Performance Guarantees | K168: Agree, PGs will be mixed between client metrics (account management) and book of business (all others)
K169: Disagree, all metrics will be based on book of business
B170: Vendor agrees to client specific Performance Guarantee metrics. | E170: Agree, PGs will be based on client metrics Agree, PGs will be mixed between client metrics (account management) and book of business (all others) Disagree, all metrics will be based on book of business
B172: Average claim turnaround time within 5 days of complete claim? | E172: text
C173: Explanation
B175: Call abandonment rate under 3%? | E175: Agree Disagree
C176: Explanation
B178: Please provide your Life Claim coding accuracy. | E178: text
C179: Explanation
B181: Please provide your Life Claim payment accuracy. | E181: text
C182: Explanation
B184: Life - Questions >> Performance Guarantees- Life and AD&D
B186: Please confirm your willingness to put 3% of premium at risk. If disagree, please specify. (Note: we are asking for the percentage without a cap, if there is a cap, please specify) | E186: Confirm Do not confirm - See explanation | K186: Confirm
C187: Explanation | K187: Do not confirm - see explanation
B188: Note: Information provided in this RFP will be shared with an external consultant that is assisting with the evaluation.

Sheet Disability
B1: ARLINGTON COUNTY GOVERNMENT, VA | E1: Insert Offeror Name Here
B2: Product Group: Disability Questionnaire
B3: Product Type: Disability Questionnaire
B4: Questionnaire: Disability - Questions | F4: Response
B7: Long Term Disability >> Disability
B9: Vendor confirms Disability pricing is valid on a standalone basis and not bundled with other product lines. | E9: Agree Disagree | J9: Agree | K9: Disagree
B11: Vendor agrees to duplicate all current benefits/provisions as described in this RFP and accompanying documentation. If vendor does not intend to duplicate the current plans exactly, all deviations will be specifically identified in the RFP response. | E11: Agree Disagree | J11: Yes | K11: No
B13: Is a single case filing required in order to match all of the current provisions? | E13: Yes No
B15: Long Term Disability >> Claim Reporting
B17: Does the vendor web site allow for "real-time" access to employer claim reports? | E17: Yes No
B19: Are claimants communicated with via text message? | E19: Yes No
B21: Are the following data elements available to employer contacts online? | C21: Claim Status | E21: Yes No
C22: Paid Through Date | E22: Yes No
C23: Estimated and actual RTW date | E23: Yes No
B25: Long Term Disability >> Long Term Disability
B27: At what point should the LTD claim be initiated?
B29: If a claimant received disability benefits under the prior plan, but returned to work for one full day after the policy effective date, and then went back out on disability as a recurrent claim... | C29: As the new vendor, confirm liability would be assumed liability for this claim. | E29: Agree Disagree N/A - Inforce carrier | J29: Agree | K29: Disagree | L29: N/A - Inforce carrier
C30: As the new Vendor, waive the elimination period that would have applied given that this is a recurrent claim. | E30: Agree Disagree N/A - Inforce carrier
B32: Does vendor offset LTD benefits by estimated Social Security awards or wait until Social Security approval is received | E32: Estimated Await Approval
B34: Vendor will not offset with Social Security retirement benefits that are being paid out in advance of a disability. | E34: Agree Disagree
B36: Employer FICA match and W2s are included in vendors LTD quote. | E36: Agree Disagree
B38: If LTD is voluntary, please confirm you have quoted pre-existing conditions only (no evidence of insurability): | E38: Agree Disagree
B40: Long Term Disability >> Value Added Services
B42: Is Financial Assistance/Budgeting counseling available for claimants who become disabled? | E42: Yes No
B44: Does vendor's LTD program include a monetary benefit that pays for equipment needed to allow an employee to Stay at Work prior to becoming a disability claim? | E44: Yes No
B46: Are any of the services provided subcontracted?
B49: Are any of the subcontract services off-shored? | E49: Yes No
B51: Long Term Disability >> Performance Guarantees
B53: Vendor agrees to client specific Performance Guarantee metrics. | E53: Agree, PGs will be based on client metrics Agree, PGs will be mixed between client metrics (account management) and book of business (all others) Disagree, all metrics will be based on book of business
B56: Long Term Disability >> Claim Process-Long Term Disability
B57: Are claims submitted by Employer or Employee? | E57: Text
C58: Explanation
B60: Vendor has 24/7 Claim intake available. | E60: Agree Disagree
C61: Explanation
B63: Vendor has voice authorization for medical documentation accepted. | E63: Agree Disagree
C64: Explanation
B67: Mobile app intake available for claim submission? | E67: Agree Disagree
C68: Explanation
B70: Telephonic intake available for claim submission? | E70: Agree Disagree
C71: Explanation
B73: Email intake available for claim submission? | E73: Agree Disagree
C74: Explanation
B76: Intake portal available for claim submission? | E76: Agree Disagree
C77: Explanation
B79: IVR available for claim submission? | E79: Agree Disagree
C80: Explanation
B82: Please provide telephonic claim submission hours. | E82: Text
C83: Explanation
B85: Are the following data elements available to employer contacts online? Claim status, Paid Through date & estimated and actual RTW date. | E85: Text
C86: Explanation
B88: What is a typical LTD claim examiner's case load? | E88: Text
C89: Explanation
B91: When does a disability case close if medical is not received? | E91: Text
C92: Explanation
B94: For disability claimaints, will you reach out with 3+ attempts to obtain medical information if not received? | E94: Agree Disagree
C95: Explanation
B97: How do claimants update their contact information? | E97: Text
C98: Explanation
B100: Will disability claimants have claim examiner's direct phone number to contact? | E100: Agree Disagree
C101: Explanation
B103: Will disability claimants have claim examiner's email address to contact? | E103: Agree Disagree
C104: Explanation
B106: Call abandonment rate under 3%? | E106: Agree Disagree
C107: Explanation
B109: LTD claim payment accuracy? Please respond with percentage.
C110: Explanation
B112: LTD coding accuracy? Please respond with percentage.
C113: Explanation
B115: Are any of the provided services off-shored? | E115: Agree Disagree
C116: Explanation
B118: Specify the location of the office that would process claims for Arlington County.
C119: Explanation
B121: Please confirm that the claim team assigned will work Monday-Friday during normal business hours.
C122: Explanation
B124: Please describe maximum number of open and new claims for examiners and clinicians.
C125: Explanation
B126: Note: Information provided in this RFP will be shared with an external consultant that is assisting with the evaluation.

Sheet Basic Life Plan - Active
A3: ARLINGTON COUNTY GOVERNMENT, VA | C3: Insert Offeror Name Here
A4: Plan Provisions: | B4: Basic Life - Active Employees
B6: Inforce Plan | C6: Vendor Response
A7: General Information | B7: Basic Life | C7: Basic Life/AD&D
A9: Class I
A10: Class Definition | B10: All Full-time and Part-time Active Employees work; excluding temporary, leased or seasonal employees Full Time working 30+ hrs/wk; Part Time 10+ hrs/wk
A11: Eligibility Waiting Period | B11: None
A12: Earnings Definition | B12: Regular annual rate of pay excluding commissions, bonuses, etc
A13: Class II
A14: Class Definition | B14: All non-seasonal temporary employees
A15: Eligibility Waiting Period | B15: 1) None – If you previously met the eligibility requirements of the Employer as of the Policy Effective Date: or 2) After 1 year of employment and you averaged 20 work hours per week during the previous year – if You start working for the Employer after the Policy Effective Date.None
A16: Earnings Definition | B16: Regular annual rate of pay excluding commissions, bonuses, etc
A17: Class III & IV
A18: Class Definition | B18: Class III All Full-time Active Employees who are county manager(s) Class IV All Full-time Active Employees who are County Attorney(s)
A19: Eligibility Waiting Period | B19: None
A20: Earnings Definition | B20: Regular annual rate of pay excluding commissions, bonuses, etc
A21: Maximums
A22: Life Benefit | B22: Class I & II 1x annual eanrings, rounded to next higher $1,000 if not already a multiple thereof Class III & IV 2x annual eanrings, rounded to next higher $1,000 if not already a multiple thereof
A23: Minimum Benefit | B23: $10,000
A24: Maximum Benefit | B24: Class I & II - Maximum $500,000 Class III & IV - Maximum benefit $1,000,000
A25: Reductions
A26: Age Reduction Description - ADEA 1, 2 or SSNRA | B26: None
A27: Additional Information
A28: Accelerated Death Benefit (ABO) | B28: 80% to $500,000; under age 70
A29: Disability Extension Start | B29: Prior to age 70; provided required premiums are paid
A30: Disability Extension End | B30: Earliest of: 1) The Policy terminates; 2) the required premium for coverage is due but not paid; 3) You attain Age 70; or 4) You are no longer in an Eligible Class, or the class is cancelled.
A31: Portability | B31: Included
A32: Conversion | B32: Included
A33: AD&D
A34: Coverage Matches Basic Life Amount | B34: Yes
A35: Loss of Life | B35: Included
A36: Schedule of AD&D losses | B36: Included
A37: Seat belt | B37: 10% to $10,000
A38: Airbag | B38: 5% to $5,000
A39: Repatriation | B39: 5% to $5,000
A40: Child Education | B40: 5% to $5,000
A41: Day Care | B41: 5% to $5,000
A42: Rehabilitation | B42: 5% to $5,000
A43: Spouse Education | B43: 5% to $5,000
A44: Adaptive Home and Vehicle | B44: 5% to $5,000
A45: Exposure & Dissappearance | B45: Included
A46: Other Comments Regarding Plan Design
A47: Deferred Effective Date | B47: Included
A48: Continuity from Prior Policy | B48: Included
A49: Coverage Termination | B49: Your coverage will end on the earliest of the following: 1) the date The Policy terminates; 2) the end of the month following the date You are no longer in a class eligible for coverage, or The Policy no longer insures Your class; 3) the end of the month following the date the premium payment is due but not paid; 4) the date Your Employer terminates Your employment; or 5) the date You are no longer Actively at Work; unless continued in accordance with any one of the Continuation Provisions
A50: Continuation | B50: Leave of Absence: 24 months after month in which leave commenced Military Leave of Absence: 24 weeks Lay Off: Last day of month following month of temporary Lay Off Sickness or Injury: 12 months FML 12 weeks / 26 weeks Severance: If Your employment terminates and continuation of life insurance is available to You in a severance plan Company Sponsored Family Leave: Up to 12 weeks of paid or unpaid leave sponsored by the Employer, all of Your coverage may be continued. Your coverage will continue until the earliest of: 1) the date The Policy terminates; 2) the date You become covered under another group life insurance policy; 3) the date specified in Your severance plan; or 4) end of the month in which your employment is severed.
A51: Exclusions | B51: AD&D: 1) intentionally self-inflicted Injury; 2) suicide or attempted suicide, whether sane or insane; 3) war or act of war, whether declared or not; 4) Injury sustained while on full-time active duty as a member of the armed forces (land, water, air) of any country or international authority; 5) Injury sustained while taking drugs, including but not limited to sedatives, narcotics, barbiturates, amphetamines, or hallucinogens, unless as prescribed by or administered by a Physician; 6) Injury sustained while committing or attempting to commit a felony; or 7) Injury sustained while Intoxicated
A52: Benefits shown above are a summary; Vendor agrees to match language (Intent thereof) included in the plan documents provided
B53: Confirmation
A54: Note: Information provided in this RFP will be shared with an external consultant that is assisting with the evaluation.

Sheet Basic Life Plan - Retirees
A3: ARLINGTON COUNTY GOVERNMENT, VA | C3: Insert Offeror Name Here
A4: Plan Provisions: | B4: Basic Life - Retirees
B6: Inforce Plan | C6: Vendor Response
A7: General Information | B7: Basic Life | C7: Basic Life/AD&D
A8: Definition of Retiree: | B8: Retiree means a former Active Full-time Employee of the Employer who has attained Retiree status according to the Employer’s retiree eligibility policy.
A9: Class Definition | B9: Class 1 - Retirees under age 65 as of April 1 every year, who have worked 10-19 hours/week; Class 2 - Retirees age 65+ as of April 1 every year, who worked 10-19 hours/week, Class 3 - Retirees under age 65 as of April 1 every year, who have worked 20-29 hours/week; Class 4 - Retirees age 65+ as of April 1 every year, who have worked 20-29 hours/weekx, Class 5 - Retirees under age 65 as of April 1 every year, who have worked 30-40 hours/week; Class 6 - Retirees age 65+ as of April 1 every year, who have worked 30-40 hours/week; prior to date of retirement;
A10: Eligibility Waiting Period | B10: None
A11: Maximums
A12: Life Benefit | B12: Class 1 $ 2,500 Class 2 $ 2,000 Class 3 $ 5,000 Class 4 $ 4,000 Class 5 $10,000 Class 6 $ 8,000
A13: Reductions
A14: Age Reduction Description - ADEA 1, 2 or SSNRA | B14: None
A15: Additional Information
A16: Accelerated Death Benefit (ABO) | B16: None
A17: Life Disability Provision | B17: None
A18: Life disability provision description | B18: None
A19: Waiting period for waiver of premium | B19: None
A20: Portability | B20: None
A21: Conversion | B21: Included
A22: AD&D
A23: Coverage Matches Basic Life Amount | B23: None
A24: Loss of Life | B24: N/A
A25: Schedule of AD&D losses | B25: N/A
A26: Seat belt | B26: N/A
A27: Airbag | B27: N/A
A28: Repatriation | B28: N/A
A29: Child Education | B29: N/A
A30: Day Care | B30: N/A
A31: Rehabilitation | B31: N/A
A32: Spouse Education | B32: N/A
A33: Adaptive Home and Vehicle | B33: N/A
A34: Exposure & Dissappearance | B34: N/A
A35: Other Comments Regarding Plan Design
A36: Deferred Effective Date | B36: Included
A37: Continuity from Prior Policy | B37: N/A
A38: Coverage Termination | B38: Coverage will end on the earliest of the following: 1) the date The Policy Terminates; 2) the date You are no longer in a class eligible for coverage, or the class is cancelled; or 3) the required premium is due but not paid.
A39: Continuation | B39: N/A
A40: Exclusions | B40: N/A
A41: Benefits shown above are a summary; Vendor agrees to match language (Intent thereof) included in the plan documents provided
B42: Confirmation
A43: Note: Information provided in this RFP will be shared with an external consultant that is assisting with the evaluation.

Sheet Basic Life - Retiree Proposed
A3: ARLINGTON COUNTY GOVERNMENT, VA | C3: Insert Offeror Name Here
A4: Plan Provisions: | B4: Basic Life - Retirees
B6: Proposed Plan | C6: Vendor Response
A7: General Information | B7: Basic Life | C7: Basic Life/AD&D
A8: Definition of Retiree: | B8: Retiree means a former Active Full-time Employee of the Employer who has attained Retiree status according to the Employer’s retiree eligibility policy, which states retiree is beneift eligible.
A9: Class Definition | B9: Class 1 - Retirees who have worked 30-40 hours Class 2 - Retiree who have worked 10-29 hours
A10: Eligibility Waiting Period | B10: None
A11: Maximums
A12: Life Benefit | B12: Class 1 - $15,000 Class 2 - $7,500
A13: Reductions
A14: Age Reduction Description - ADEA 1, 2 or SSNRA | B14: None
A15: Additional Information
A16: Accelerated Death Benefit (ABO) | B16: None
A17: Life Disability Provision | B17: None
A18: Life disability provision description | B18: None
A19: Waiting period for waiver of premium | B19: None
A20: Portability | B20: None
A21: Conversion | B21: Included
A22: AD&D
A23: Coverage Matches Basic Life Amount | B23: None
A24: Loss of Life | B24: N/A
A25: Schedule of AD&D losses | B25: N/A
A26: Seat belt | B26: N/A
A27: Airbag | B27: N/A
A28: Repatriation | B28: N/A
A29: Child Education | B29: N/A
A30: Day Care | B30: N/A
A31: Rehabilitation | B31: N/A
A32: Spouse Education | B32: N/A
A33: Adaptive Home and Vehicle | B33: N/A
A34: Exposure & Dissappearance | B34: N/A
A35: Other Comments Regarding Plan Design
A36: Deferred Effective Date | B36: Included
A37: Continuity from Prior Policy | B37: N/A
A38: Coverage Termination | B38: Coverage will end on the earliest of the following: 1) the date The Policy Terminates; 2) the date You are no longer in a class eligible for coverage, or the class is cancelled; or 3) the required premium is due but not paid.
A39: Continuation | B39: N/A
A40: Exclusions | B40: N/A
A41: Benefits shown above are a summary; Vendor agrees to match language (Intent thereof) included in the plan documents provided
B42: Confirmation
A43: Note: Information provided in this RFP will be shared with an external consultant that is assisting with the evaluation.

Sheet Voluntary Life Plan - Active
A3: ARLINGTON COUNTY GOVERNMENT, VA | C3: Insert Offeror Name Here
A4: Plan Provisions: | B4: Voluntary Life/AD&D - Active Employees
B6: Inforce Plan | C6: Vendor Response
A7: General Information | B7: Voluntary Life/AD&D | C7: Voluntary Life/AD&D
A8: Class 1
A9: Class Definition | B9: All Full Time and Part Time Active employees; Full Time working 30+ hrs/wk; Part Time 10+ hrs/wk | D9: .
A10: Eligibility Waiting Period | B10: None
A11: Earnings Definition | B11: Regular annual rate of pay excluding commissions, bonuses, etc
A12: Benefit - Employee
A13: Employee Life Benefit | B13: .5, 1, 2, 3, 4, 5 times earnings, rounded to next higer $1,000 if not already a multiple thereof
A14: Minimum | B14: $10,000
A15: Overall Max | B15: $1,000,000
A16: GI Max | B16: Lesser of 2x earnings or $450,000, rounded to next higher $1,000 if not already a multiple thereof
A17: Does AD&D benefit match Life benefit | B17: Yes
A18: Benefit - Dependent
A19: Spouse Life Benefit | B19: Increments of $5,000 to a Maximum of $250,000; not to exceed 50% of Employee Voluntary Life Amount
A20: Spouse Life Benefit Maximum | B20: $250,000
A21: Child Life Benefit | B21: $10,000
A22: Child Age | B22: Requesting Live Birth but under age 19 years; Age 25 if Full-time student Eligibility includes incapacitated children
A23: GI Max | B23: Spouse GI $50,000; Child GI $10,000
A24: Does AD&D benefit match Life benefit | B24: Yes
A25: Enrollment
A26: Initial / Ongoing | B26: Within 60 Days after becoming eligible / Within 60 days of the date of a change in Family Status EOI is required at Open Enrollment for all Increases
A27: Reductions
A28: Age Reduction Description - ADEA 1, 2 or SSNRA | B28: None
A29: Additional Information
A30: Accelerated Death Benefit (ABO) | B30: Under age 70; 80% to $500,000
A31: Disability Extension | B31: If disabled prior to age 70, coverage may be continued for Employee and Dependents provided the required premium payments are made; until age 70 This does not apply to AD&D coverage
A32: Portability | B32: Included - Employee and Dependent
A33: Conversion | B33: Included
A34: AD&D
A35: Loss of Life | B35: Included
A36: Schedule of AD&D losses | B36: Included
A37: Seat belt | B37: 10% to $10,000
A38: Airbag | B38: 5% to $5,000
A39: Repatriation | B39: 5% to $5,000
A40: Child Education | B40: 5% to $5,000
A41: Day Care | B41: 5% to $5,000
A42: Rehabilitation | B42: 5% to $5,000
A43: Spouse Education | B43: 5% to $5,000
A44: Adaptive Home and Vehicle | B44: 5% to $5,000
A45: Exposure & Dissappearance | B45: Included
A46: Other Comments Regarding Plan Design
A47: Deferred Effective Date | B47: Included
A48: Continuity from Prior Policy | B48: Included
A49: Coverage Termination | B49: Your coverage will end on the earliest of the following: 1) the date The Policy terminates; 2) the date You are no longer in a class eligible for coverage, or The Policy no longer insures Your class; 3) the date the premium payment is due but not paid; 4) the date Your Employer terminates Your employment; or 5) the date You are no longer Actively at Work; unless continued in accordance with any one of the Continuation Provisions. Coverage for Your Dependent will end on the earliest to occur of: 1) the date Your coverage ends; 2) the date the required premium is due but not paid; 3) the date You are no longer eligible for Dependent coverage; 4) the date We or the Employer terminate Dependent coverage; or 5) the date the Dependent no longer meets the definition of Dependent;
A50: Continuation | B50: Leave of Absence: 24 months after month in which leave commenced Military Leave of Absence: 24 weeks Lay Off: Last day of month following month of temporary Lay Off FML 12 weeks / 26 weeks Dependent Children with Disabilities Supp Life continues to the end of the month following termination
A51: Exclusions | B51: Life Coverage: Suicide exclusion: 2 years AD&D Coverage: 1) intentionally self-inflicted Injury; 2) suicide or attempted suicide, whether sane or insane; 3) war or act of war, whether declared or not; 4) Injury sustained while on full-time active duty as a member of the armed forces (land, water, air) of any country or international authority; 5) Injury sustained while taking drugs, including but not limited to sedatives, narcotics, barbiturates, amphetamines, or hallucinogens, unless as prescribed by or administered by a Physician; 6) Injury sustained while committing or attempting to commit a felony; or 7) Injury sustained while Intoxicated
A52: Benefits shown above are a summary; Vendor agrees to match language (Intent thereof) included in the plan documents provided
B53: Confirmation
A54: Note: Information provided in this RFP will be shared with an external consultant that is assisting with the evaluation.

Sheet Voluntary Life Plan - Retirees
A3: ARLINGTON COUNTY GOVERNMENT, VA | C3: Insert Offeror Name Here
A4: Plan Provisions: | B4: Voluntary Life - Retirees
B6: Inforce Plan | C6: Vendor Response
A7: General Information | B7: Voluntary Life | C7: Voluntary Life
A8: Definition of Retiree: | B8: Retiree means a former Active Full-time Employee of the Employer who has attained Retiree status according to the Employer’s retiree eligibility policy.
A9: Class Definition | B9: Class 1 - Retirees under age 65 as of April 1 every year, who have worked 10-19 hours/week; Class 2 - Retirees age 65+ as of April 1 every year, who worked 10-19 hours/week, Class 3 - Retirees under age 65 as of April 1 every year, who have worked 20-29 hours/week; Class 4 - Retirees age 65+ as of April 1 every year, who have worked 20-29 hours/weekx, Class 5 - Retirees under age 65 as of April 1 every year, who have worked 30-40 hours/week; Class 6 - Retirees age 65+ as of April 1 every year, who have worked 30-40 hours/week; prior to date of retirement;
A10: Eligibility Waiting Period | B10: None
A11: Maximums
A12: Life Benefit | B12: Class 1 $ 5,000 Class 2 $ 2,500 Class 3 $ 10,000 Class 4 $ 5,000 Class 5 Option 1 $10,000; Option 2 .5x to $100,000; Option 3 1x to $100,000 Class 6 $ 10,000
A13: Reductions
A14: Age Reduction Description - ADEA 1, 2 or SSNRA | B14: None
A15: Additional Information
A16: Accelerated Death Benefit (ABO) | B16: None
A17: Life Disability Provision | B17: None
A18: Life disability provision description | B18: None
A19: Waiting period for waiver of premium | B19: None
A20: Portability | B20: None
A21: Conversion | B21: Included
A22: AD&D
A23: Coverage Matches Basic Life Amount | B23: None
A24: Loss of Life | B24: N/A
A25: Schedule of AD&D losses | B25: N/A
A26: Seat belt | B26: N/A
A27: Airbag | B27: N/A
A28: Repatriation | B28: N/A
A29: Child Education | B29: N/A
A30: Day Care | B30: N/A
A31: Rehabilitation | B31: N/A
A32: Spouse Education | B32: N/A
A33: Adaptive Home and Vehicle | B33: N/A
A34: Exposure & Dissappearance | B34: N/A
A35: Other Comments Regarding Plan Design
A36: Deferred Effective Date | B36: Included
A37: Continuity from Prior Policy | B37: N/A
A38: Coverage Termination | B38: Coverage will end on the earliest of the following: 1) the date The Policy Terminates; 2) the date You are no longer in a class eligible for coverage, or the class is cancelled; or 3) the required premium is due but not paid.
A39: Continuation | B39: N/A
A40: Exclusions | B40: N/A
A41: Benefits shown above are a summary; Vendor agrees to match language (Intent thereof) included in the plan documents provided
B42: Confirmation
A43: Note: Information provided in this RFP will be shared with an external consultant that is assisting with the evaluation.

Sheet Voluntary Life - Retire Propose
A3: ARLINGTON COUNTY GOVERNMENT, VA | C3: Insert Offeror Name Here
A4: Plan Provisions: | B4: Voluntary Life - Retirees
B6: Proposed Plan | C6: Vendor Response
A7: General Information | B7: Voluntary Life | C7: Voluntary Life
A8: Definition of Retiree: | B8: Retiree means a former Active Full-time Employee of the Employer who has attained Retiree status according to the Employer’s retiree eligibility policy, which states retiree is beneift eligible.
A9: Class Definition | B9: Retirees under age 65 Retirees age 65+
A10: Eligibility Waiting Period | B10: None
A11: Maximums
A12: Life Benefit | B12: < 65: Choice of $25K, $50K, $75K, $100K, not to exceed coverage amount inforce as active employee > 65 Flat $5K and $10K
A13: Reductions
A14: Age Reduction Description - ADEA 1, 2 or SSNRA | B14: None
A15: Additional Information
A16: Accelerated Death Benefit (ABO) | B16: None
A17: Life Disability Provision | B17: None
A18: Life disability provision description | B18: None
A19: Waiting period for waiver of premium | B19: None
A20: Portability | B20: None
A21: Conversion | B21: Included
A22: AD&D
A23: Coverage Matches Basic Life Amount | B23: None
A24: Loss of Life | B24: N/A
A25: Schedule of AD&D losses | B25: N/A
A26: Seat belt | B26: N/A
A27: Airbag | B27: N/A
A28: Repatriation | B28: N/A
A29: Child Education | B29: N/A
A30: Day Care | B30: N/A
A31: Rehabilitation | B31: N/A
A32: Spouse Education | B32: N/A
A33: Adaptive Home and Vehicle | B33: N/A
A34: Exposure & Dissappearance | B34: N/A
A35: Other Comments Regarding Plan Design
A36: Deferred Effective Date | B36: Included
A37: Continuity from Prior Policy | B37: N/A
A38: Coverage Termination | B38: Coverage will end on the earliest of the following: 1) the date The Policy Terminates; 2) the date You are no longer in a class eligible for coverage, or the class is cancelled; or 3) the required premium is due but not paid.
A39: Continuation | B39: N/A
A40: Exclusions | B40: N/A
A41: Benefits shown above are a summary; Vendor agrees to match language (Intent thereof) included in the plan documents provided
B42: Confirmation
A43: Note: Information provided in this RFP will be shared with an external consultant that is assisting with the evaluation.

Sheet Life Financials
A3: ARLINGTON COUNTY GOVERNMENT, VA | E3: Insert Offeror Name Here
A4: Basic Life
A5: Rate Basis: Per $1,000
B6: Inforce Plan | E6: Vendor Response
A7: Class | B7: Lives | C7: Volumes | D7: Inforce Rate | E7: ="Proposed " & B4 & " Rates" -> Proposed Rates
A8: Class I | B8: 3726 | C8: $398,737,000 | D8: $0.100
A9: Class II | B9: 112 | C9: $5,386,000 | D9: $0.100
A10: Class III | B10: 1 | C10: $500,000 | D10: $0.100
A11: Class IV | B11: 1 | C11: $501,000 | D11: $0.100
A12: Retirees | B12: 2600 | C12: $22,288,000 | D12: $2.322
A14: Monthly Cost | B14: =SUM(B8:B12) -> 6440 | C14: =SUM(C8:C12) -> $427,412,000 | D14: =SUMPRODUCT($C$8:$C$12,D8:D12)/1000 -> $92,265 | E14: =SUMPRODUCT($C$8:$C$12,E8:E12)/1000 -> $0
A15: Annual Cost | D15: =D14*12 -> $1,107,182 | E15: =E14*12 -> $0
A17: Amount Changed from Current | E17: =E15-$D$15 -> -$1,107,182
A18: % Change from Current | E18: =E15/$D$15-1 -> -100.0%
A22: Basic AD&D
A23: Rate Basis: Per $1,000
B24: Inforce Plan | E24: Vendor Response
A25: Class | B25: Lives | C25: Volumes | D25: Inforce | E25: ="Proposed " & B22 & " Rates" -> Proposed Rates
A26: Class I | B26: 3726 | C26: $398,737,000 | D26: $0.025
A27: Class II | B27: 112 | C27: $5,386,000 | D27: $0.025
A28: Class III | B28: 1 | C28: $500,000 | D28: $0.025
A29: Class IV | B29: 1 | C29: $501,000 | D29: $0.025
A31: Monthly Cost | B31: =SUM(B26:B29) -> 3840 | C31: =SUM(C26:C29) -> $405,124,000 | D31: =SUMPRODUCT($C$26:$C$29,D26:D29)/1000 -> $10,128 | E31: =SUMPRODUCT($C$26:$C$29,E26:E29)/1000 -> $0
A32: Annual Cost | D32: =D31*12 -> $121,537 | E32: =E31*12 -> $0
A34: Amount Changed from Current | E34: =E32-$D$32 -> -$121,537
A35: % Change from Current | E35: =E32/$D$32-1 -> -100.0%
A39: Dependent Life
A40: Rate Basis: PEPM
B41: Inforce Plan | E41: Vendor Response
B42: Lives | D42: Inforce | E42: ="Proposed " & B39 & " Rates" -> Proposed Rates
A43: Child | B43: 679 | D43: $0.510
A45: Monthly Cost | B45: =B43 -> 679 | D45: =D43*B43 -> $346 | E45: =E43*B43 -> $0
A46: Annual Cost | D46: =D45*12 -> $4,155 | E46: =E45*12 -> $0
A48: Amount Changed from Current | E48: =E46-$D$46 -> -$4,155
A49: % Change from Current | E49: =E46/$D$46-1 -> -100.0%
A53: Spouse Voluntary Life
A54: Rate Basis: Per $1,000
B55: Inforce Plan | E55: Vendor Response
A56: Age | B56: Lives | C56: Volumes | D56: Inforce | E56: ="Proposed " & B53 & " Rates" -> Proposed Rates
A58: <25 | B58: 1 | C58: $5,000 | D58: $0.051
A59: 25-29 | B59: 7 | C59: $425,000 | D59: $0.043
A60: 30-34 | B60: 26 | C60: $1,525,000 | D60: $0.051
A61: 35-39 | B61: 69 | C61: $5,000,000 | D61: $0.068
A62: 40-44 | B62: 94 | C62: $5,865,000 | D62: $0.111
A63: 45-49 | B63: 88 | C63: $4,235,000 | D63: $0.162
A64: 50-54 | B64: 89 | C64: $3,955,000 | D64: $0.290
A65: 55-59 | B65: 70 | C65: $2,955,000 | D65: $0.478
A66: 60-64 | B66: 37 | C66: $1,555,000 | D66: $0.734
A67: 65-69 | B67: 17 | C67: $465,000 | D67: $1.356
A68: 70-74 | B68: 7 | C68: $225,000 | D68: $2.244
A69: 75+ | B69: 1 | C69: $10,000 | D69: $3.668
A71: Monthly Cost | B71: =SUM(B58:B70) -> 506 | C71: =SUM(C58:C70) -> $26,220,000 | D71: =SUMPRODUCT($C$57:$C$69,D57:D69)/1000 -> $6,646 | E71: =SUMPRODUCT($C$82:$C$94,E57:E69)/1000 -> $0
A72: Annual Cost | D72: =D71*12 -> $79,756 | E72: =E71*12 -> $0
A74: Amount Changed from Current | E74: =E72-$F$97 -> -$1,210,121
A75: % Change from Current | E75: =E72/$F$97-1 -> -100.0%
A78: Employee Voluntary Life | B78: Smoker/NonSmoker
A79: Rate Basis: Per $1,000
B80: Inforce Plan | G80: Vendor Response
A81: Age | B81: Lives | C81: Smoker Volumes | D81: NonSmoker Volumes | E81: Inforce Smoker | F81: Inforce Non Smoker | G81: Quoted Smoker | H81: Quoted Non Smoker
A83: <25 | B83: 17 | C83: $0 | D83: $2,921,000 | E83: $0.048 | F83: $0.037
A84: 25-29 | B84: 100 | C84: $231,000 | D84: $14,886,000 | E84: $0.048 | F84: $0.048
A85: 30-34 | B85: 169 | C85: $1,570,000 | D85: $25,270,000 | E85: $0.064 | F85: $0.053
A86: 35-39 | B86: 238 | C86: $1,723,000 | D86: $51,520,000 | E86: $0.085 | F86: $0.069
A87: 40-44 | B87: 272 | C87: $2,560,000 | D87: $59,933,000 | E87: $0.133 | F87: $0.101
A88: 45-49 | B88: 277 | C88: $1,219,000 | D88: $62,247,000 | E88: $0.202 | F88: $0.181
A89: 50-54 | B89: 261 | C89: $1,217,000 | D89: $61,417,000 | E89: $0.346 | F89: $0.298
A90: 55-59 | B90: 201 | C90: $1,754,000 | D90: $37,767,000 | E90: $0.575 | F90: $0.458
A91: 60-64 | B91: 176 | C91: $1,750,000 | D91: $30,078,000 | E91: $0.878 | F91: $0.878
A92: 65-69 | B92: 62 | C92: $46,000 | D92: $8,707,000 | E92: $1.692 | F92: $1.421
A93: 70-74 | B93: 16 | C93: $0 | D93: $2,089,000 | E93: $2.746 | F93: $1.421
A94: 75+ | B94: 4 | C94: $0 | D94: $322,000 | E94: $2.746 | F94: $1.421
A96: Monthly Cost | B96: =SUM(B82:B94) -> 1793 | C96: =SUM(C82:C94) -> $12,070,000 | D96: =SUM(D82:D94) -> $357,157,000 | E96: =SUMPRODUCT($C$82:$C$94,E82:E94)/1000 -> $3,888.71 | F96: =SUMPRODUCT($D$82:$D$94,F82:F94)/1000 -> $100,843.45 | G96: =SUMPRODUCT($C$82:$C$94,G82:G94)/1000 -> $0.00 | H96: =SUMPRODUCT($D$82:$D$94,H82:H94)/1000 -> $0.00
A97: Annual Cost | E97: =E96*12 -> $46,664 | F97: =F96*12 -> $1,210,121 | G97: =G96*12 -> $0 | H97: =H96*12 -> $0
A99: Amount Changed from Current | G99: =G97-$F$97 -> -$1,210,121 | H99: =H97-$F$97 -> -$1,210,121
A100: % Change from Current | G100: =G97/$F$97-1 -> -100.0% | H100: =H97/$F$97-1 -> -100.0%
A104: Retiree Voluntary Life
A105: Rate Basis: Per $1,000
B106: Inforce Plan | E106: Vendor Response
A107: Age | B107: Lives | C107: Volumes | D107: Inforce | E107: ="Proposed " & B104 & " Rates" -> Proposed Rates
A108: Retiree Voluntary Life | B108: 613 | C108: $15,528,000 | D108: $1.800
A110: Monthly Cost | B110: =SUM(B108:B108) -> 613 | C110: =SUM(C108:C108) -> $15,528,000 | D110: =D108/1000*C108 -> $27,950 | E110: =E108/1000*C108 -> $0
A111: Annual Cost | D111: =D110*12 -> $335,405 | E111: =E110*12 -> $0
A113: Amount Changed from Current | E113: =E111-$F$97 -> -$1,210,121
A114: % Change from Current | E114: =E111/$F$97-1 -> -100.0%
A118: Voluntary AD&D
A119: Rate Basis: Per $1,000
B120: Inforce Plan | E120: Vendor Response
B121: Lives | C121: Volumes | D121: Inforce | E121: ="Proposed " & B118 & " Rates" -> Proposed Rates
A122: Employees | B122: 1792 | C122: $369,227,000 | D122: $0.025
A123: Dependents | B123: 1185 | C123: $33,010,000 | D123: $0.025
A126: Monthly Cost | B126: =SUM(B124:B124) -> 0 | C126: =SUM(C124:C124) -> $0 | D126: =SUMPRODUCT($C$122:$C$124,D122:D124)/1000 -> $10,056 | E126: =SUMPRODUCT($C$122:$C$124,E122:E124)/1000 -> $0
A127: Annual Cost | D127: =D126*12 -> $120,671 | E127: =E126*12 -> $0
A129: Amount Changed from Current | E129: =E127-$D$127 -> -$120,671
A130: % Change from Current | E130: =E127/$D$127-1 -> -100.0%
A134: All Life/AD&D Products | E134: Vendor Response
A135: Rate Information
A136: Rate Guarantee End Date
A138: Describe underlying rate assumptions:
A139: a) Minimum enrollment assumptions:
A140: b) Minimum employer contribution levels
A141: c) Enrollment deviations +/- 15%:
A142: d) Multi-line Discount
A144: Rate Caveats
A145: Confirm Rates Include Requested Commission
A146: Note: Information provided in this RFP will be shared with an external consultant that is assisting with the evaluation.

Sheet Life Financials Proposed
A3: ARLINGTON COUNTY GOVERNMENT, VA | E3: Insert Offeror Name Here
A4: Basic Life
A5: Rate Basis: Per $1,000
B6: Inforce Plan | E6: Vendor Response
A7: Class | B7: Lives | C7: Volumes | D7: Inforce Rate | E7: ="Proposed " & B4 & " Rates" -> Proposed Rates
A8: Retirees | B8: 2600 | C8: =B8*15000 -> $39,000,000 | D8: NA
A10: Monthly Cost | B10: =SUM(B8:B8) -> 2600 | C10: =SUM(C8:C8) -> $39,000,000 | D10: =SUMPRODUCT($C$8:$C$8,D8:D8)/1000 -> $0 | E10: =E8/1000*C8 -> $0
A11: Annual Cost | D11: =D10*12 -> $0 | E11: =E10*12 -> $0
A13: Amount Changed from Current | E13: =E11-$D$11 -> $0
A14: % Change from Current | E14: =E11/$D$11-1 -> 
A18: Retiree Voluntary Life
A19: Rate Basis: Per $1,000
B20: Inforce Plan | E20: Vendor Response
A21: Age | B21: Lives | C21: Volumes | D21: Inforce | E21: ="Proposed " & B18 & " Rates" -> Proposed Rates
A22: Retiree Voluntary Life | B22: 613 | C22: $16,230,000 | D22: NA
A24: Monthly Cost | B24: =SUM(B22:B22) -> 613 | C24: $15,955,000 | D24: $0 | E24: =E22/1000*C22 -> $0
A25: Annual Cost | D25: $0 | E25: =E24*12 -> $0
A27: Amount Changed from Current | E27: $0
A28: % Change from Current | E28: 0.0%
A32: All Life/AD&D Products | E32: Vendor Response
A33: Rate Information
A34: Rate Guarantee End Date
A36: Describe underlying rate assumptions:
A37: a) Minimum enrollment assumptions:
A38: b) Minimum employer contribution levels
A39: c) Enrollment deviations +/- 15%:
A40: d) Multi-line Discount
A42: Rate Caveats
A43: Confirm Rates Include Requested Commission
A44: Note: Information provided in this RFP will be shared with an external consultant that is assisting with the evaluation.

Sheet LTD Plan
A3: ARLINGTON COUNTY GOVERNMENT, VA | C3: Insert Offeror Name Here
A4: Plan Provisions: | B4: Long Term Disability
B6: Inforce Plan | C6: Vendor Response
A7: General Information | B7: LTD | C7: LTD
A8: Employer Contribution (Base or Core) | B8: Contributory for Employees
A9: Pre-tax, Post-tax for contributory coverages | B9: Post
A10: Class I
A11: Class Definition | B11: All Full-time and Part-time Active Employees work; excluding temporary, leased or seasonal employees Full Time working 30+ hrs/wk; Part Time 10+ hrs/wk
A12: Eligibility Waiting Period | B12: None
A13: Earnings Definition | B13: Regular annual rate of pay excluding commissions, bonuses, etc
A14: Elimination Period | B14: 365 Days If at the end of the Elimination Period, You are prevented from performing one or more of the Essential Duties of Your Occupation, but Your Current Monthly Earnings are equal to or greater than 80% of Your Pre-disability Earnings, Your Elimination Period will be extended for a total period of 12 months from the original date of Disability, or until such time as Your Current Monthly Earnings are less than 80% of Your Pre-disability Earnings, whichever occurs first. For the purposes of extending Your Elimination Period, Your Current Monthly Earnings will not include the pay You could have received for another job or a modified job if such job was offered to You by Your Employer, or another employer, and You refused the offer. Sal-Con plan in place managed by Client during EP
A15: Basic Benefit % | B15: 60.00%
A16: Basic Max Benefit | B16: $10,000
A17: Min Mo Benefit | B17: $100 / 10%
A18: Own Occupation | B18: 2 years and earnings are less than 80% of pre-disability earnings
A19: Additional Information
A20: Benefit Duration | B20: Normal Retirement Age
A21: Residual during elimination period | B21: Included
A22: COLA | B22: Not Included
A23: Social Security Offsets | B23: Family
A24: Arlington County retirement system Offsets | B24: Included
A25: Survivor Benefit | B25: 3x
A26: Individual Conversion Available | B26: Not Included
A27: Recurrent Disability | B27: Less than 1/2 the number of days of EP
A28: Return to work Incentive | B28: Disabled and working after EP, Earnings not offset unless they exceed 100% of pre-disaability earnings
A29: Limitations
A30: Pre-Ex Provision | B30: Exclusion 3/12
A31: Mental Illness Limitation | B31: 24 Mo Limitation; mental disorder as listed in the current version of the Diagnostic and Statistical Manual of Mental Disorders, published by the American Psychiatric Association
A32: Alcohol and Substance Abuse Limitation | B32: 24 Mo Limitation
A33: Self-reported Symptoms | B33: No Limitation
A34: Other Comments Regarding Plan Design
A35: EAP | B35: Not Included
A36: Family Care Credit | B36: Included
A37: Workplace Modification | B37: Included
A38: Enrollment period | B38: 60 days
A39: Deferred Effective Date | B39: Included
A40: Termination of Payment | B40: Benefit payments will stop on the earliest of: 1) the date You are no longer Disabled; 2) the date You fail to furnish Proof of Loss; 3) the date You are no longer under the Regular Care of a Physician; 4) the date You refuse Our request that You submit to an examination by a Physician or other qualified medical professional; 5) the date of Your death; 6) the date You refuse to receive recommended treatment that is generally acknowledged by Physicians to cure, correct or limit the disabling condition; 7) the last day benefits are payable according to the Maximum Duration of Benefits Table; 8) the date Your Current Monthly Earnings: a) are equal to or greater than 80% of Your Indexed Pre-disability Earnings if You are receiving benefits for being Disabled from Your Occupation; or b) are greater than the lesser of the product of Your Indexed Pre-disability Earnings and the Benefit Percentage or the Maximum Monthly Benefit if You are receiving benefits for being Disabled from Any Occupation; 9) the date no further benefits are payable under any provision in The Policy that limits benefit duration; or 10) the date You refuse to participate in a Rehabilitation program, or refuse to cooperate with or try: a) modifications made to the work site or job process to accommodate Your identified medical limitations to enable You to perform the Essential Duties of Your Occupation; b) adaptive equipment or devices designed to accommodate Your identified medical limitations to enable You to perform the Essential Duties of Your Occupation;
A41: Termination of Coverage | B41: Your coverage will end on the earliest of the following: 1) the end of the month following the date The Policy terminates; 2) the end of the month following the date The Policy no longer insures Your class; 3) the end of the month following the date premium payment is due but not paid, subject to the Grace Period; 4) the last day of the period for which You make any required premium contribution, subject to the Grace Period; 5) the end of the month following the date Your Employer terminates Your employment; or 6) the end of the month following the date You cease to be a Full-time or Part-time Active Employee in an eligible class for any reason; unless continued in accordance with any of the Continuation Provisions.
A42: Continuation | B42: Leave of Absence: Last day of month following month in which the leave commenced Military Leave of Absence: 12 weeks Lay Off: Last day of month following month of temporary Lay Off FML: up to 12 weeks, or 26 weeks if qualified for Family Military Leave
A43: Exclusions | B43: The Policy does not cover, and We will not pay a benefit for, any Disability: 1) unless You are under the Regular Care of a Physician; 2) that is caused or contributed to by war or act of war, whether declared or not; 3) caused by Your commission of or attempt to commit a felony; 4) caused or contributed to by Your being engaged in an illegal occupation; or 5) caused or contributed to by an intentionally self-inflicted injury.
A44: Benefits shown above are a summary; Vendor agrees to match language (Intent thereof) included in the plan documents provided
B45: Confirmation
A46: Note: Information provided in this RFP will be shared with an external consultant that is assisting with the evaluation.

Sheet LTD Plan Proposed
A3: ARLINGTON COUNTY GOVERNMENT, VA | C3: Insert Offeror Name Here
A4: Plan Provisions: | B4: Long Term Disability
B6: Proposed Plan | C6: Vendor Response
A7: General Information | B7: LTD | C7: LTD
A8: Employer Contribution (Base or Core) | B8: Core plan options Employer Paid / Buy-Up Employee Paid
A9: Pre-tax, Post-tax for contributory coverages | B9: Pre tax Core / Post tax Buy-up
A10: Class I
A11: Class Definition | B11: All Full-time and Part-time Active Employees work; excluding temporary, leased or seasonal employees Full Time working 30+ hrs/wk; Part Time 10+ hrs/wk
A12: Eligibility Waiting Period | B12: None
A13: Earnings Definition | B13: Regular monthly rate of pay excluding commissions, bonuses, etc
A14: Elimination Period | B14: 90 days
A15: Option 1: | B15: 50% Core plan; 60% Buy-up plan
A16: Option 2 | B16: ER Paid 60% Core plan; No Buy-up plan
A17: Min Mo Benefit | B17: $100 / 10%
A18: Own Occupation | B18: 12 Month Own Occ
A19: Additional Information
A20: Option 1 Benefit Duration | B20: Core Plan 5 years; Buy-up Plan Age 65 Duration
A21: Option 2 Benefit Duration | B21: 5 year duration
A22: Residual during elimination period | B22: Included
A23: COLA | B23: Not Included
A24: Social Security Offsets | B24: Family
A25: Arlington County retirement system Offsets | B25: Included
A26: Survivor Benefit | B26: 3x
A27: Individual Conversion Available | B27: Not Included
A28: Recurrent Disability | B28: Less than 1/2 the number of days of EP
A29: Return to work Incentive | B29: Disabled and working after EP, Earnings not offset unless they exceed 100% of pre-disaability earnings
A30: Limitations
A31: Pre-Ex Provision | B31: Exclusion 3/12
A32: Mental Illness Limitation | B32: 24 Mo Limitation; mental disorder as listed in the current version of the Diagnostic and Statistical Manual of Mental Disorders, published by the American Psychiatric Association
A33: Alcohol and Substance Abuse Limitation | B33: 24 Mo Limitation
A34: Self-reported Symptoms | B34: No Limitation
A35: Other Comments Regarding Plan Design
A36: EAP | B36: Not Included
A37: Family Care Credit | B37: Included
A38: Workplace Modification | B38: Included
A39: Enrollment period | B39: 60 days
A40: Deferred Effective Date | B40: Included
A41: Termination of Payment | B41: Benefit payments will stop on the earliest of: 1) the date You are no longer Disabled; 2) the date You fail to furnish Proof of Loss; 3) the date You are no longer under the Regular Care of a Physician; 4) the date You refuse Our request that You submit to an examination by a Physician or other qualified medical professional; 5) the date of Your death; 6) the date You refuse to receive recommended treatment that is generally acknowledged by Physicians to cure, correct or limit the disabling condition; 7) the last day benefits are payable according to the Maximum Duration of Benefits Table; 8) the date Your Current Monthly Earnings: a) are equal to or greater than 80% of Your Indexed Pre-disability Earnings if You are receiving benefits for being Disabled from Your Occupation; or b) are greater than the lesser of the product of Your Indexed Pre-disability Earnings and the Benefit Percentage or the Maximum Monthly Benefit if You are receiving benefits for being Disabled from Any Occupation; 9) the date no further benefits are payable under any provision in The Policy that limits benefit duration; or 10) the date You refuse to participate in a Rehabilitation program, or refuse to cooperate with or try: a) modifications made to the work site or job process to accommodate Your identified medical limitations to enable You to perform the Essential Duties of Your Occupation; b) adaptive equipment or devices designed to accommodate Your identified medical limitations to enable You to perform the Essential Duties of Your Occupation;
A42: Termination of Coverage | B42: Your coverage will end on the earliest of the following: 1) the end of the month following the date The Policy terminates; 2) the end of the month following the date The Policy no longer insures Your class; 3) the end of the month following the date premium payment is due but not paid, subject to the Grace Period; 4) the last day of the period for which You make any required premium contribution, subject to the Grace Period; 5) the end of the month following the date Your Employer terminates Your employment; or 6) the end of the month following the date You cease to be a Full-time or Part-time Active Employee in an eligible class for any reason; unless continued in accordance with any of the Continuation Provisions.
A43: Continuation | B43: Leave of Absence: Last day of month following month in which the leave commenced Military Leave of Absence: 12 weeks Lay Off: Last day of month following month of temporary Lay Off FML: up to 12 weeks, or 26 weeks if qualified for Family Military Leave
A44: Exclusions | B44: The Policy does not cover, and We will not pay a benefit for, any Disability: 1) unless You are under the Regular Care of a Physician; 2) that is caused or contributed to by war or act of war, whether declared or not; 3) caused by Your commission of or attempt to commit a felony; 4) caused or contributed to by Your being engaged in an illegal occupation; or 5) caused or contributed to by an intentionally self-inflicted injury.
A45: Benefits shown above are a summary; Vendor agrees to match language (Intent thereof) included in the plan documents provided
B46: Confirmation
A48: Note: Information provided in this RFP will be shared with an external consultant that is assisting with the evaluation.

Sheet LTD Financials
A3: ARLINGTON COUNTY GOVERNMENT, VA | E3: Insert Offeror Name Here
A4: Inforce Voluntary LTD
A5: Rate Basis: Per $100 Monthly Covered Payroll
B6: Inforce Plan | E6: Vendor Response
A7: Age | B7: Lives | C7: Volumes | D7: Inforce | E7: ="Proposed " & B4 & " Rates" -> Proposed Rates
A9: <25 | B9: 15 | C9: $75,387 | D9: $0.089
A10: 25-29 | B10: 62 | C10: $343,288 | D10: $0.107
A11: 30-34 | B11: 104 | C11: $619,839 | D11: $0.168
A12: 35-39 | B12: 110 | C12: $763,532 | D12: $0.294
A13: 40-44 | B13: 104 | C13: $809,350 | D13: $0.449
A14: 45-49 | B14: 108 | C14: $861,436 | D14: $0.673
A15: 50-54 | B15: 96 | C15: $765,887 | D15: $0.849
A16: 55-59 | B16: 67 | C16: $537,752 | D16: $0.987
A17: 60-64 | B17: 66 | C17: $566,933 | D17: $0.888
A18: 65-69 | B18: 20 | C18: $157,635 | D18: $0.694
A19: 70-74 | B19: 2 | C19: $14,929 | D19: $0.694
A20: 75+ | B20: 1 | C20: $7,590 | D20: $0.694
A22: Monthly Cost | B22: =SUM(B8:B20) -> 755 | C22: =SUM(C8:C20) -> $5,523,560 | D22: =SUMPRODUCT($C$8:$C$20,D8:D20)/100 -> $31,247 | E22: =SUMPRODUCT($C$8:$C$20,E8:E20)/100 -> $0
A23: Annual Cost | D23: =D22*12 -> $374,959 | E23: =E22*12 -> $0
A25: Amount Changed from Current | E25: =E23-$D$23 -> -$374,959
A26: % Change from Current | E26: =E23/$D$23-1 -> -100.0%
E29: Vendor Response
A30: Rate Information
A31: Rate Guarantee End Date
A33: Describe underlying rate assumptions:
A34: a) Minimum enrollment assumptions:
A35: b) Minimum employer contribution levels
A36: c) Enrollment deviations +/- 15%:
A37: d) Multi-line Discount
A39: Rate Caveats
A40: Confirm Rates Include Requested Commission
A41: Note: Information provided in this RFP will be shared with an external consultant that is assisting with the evaluation.

Sheet LTD Financials Proposed
A3: ARLINGTON COUNTY GOVERNMENT, VA | E3: Insert Offeror Name Here
A5: Proposed LTD Core Plan - Option 1 50%
A6: Rate Basis: Per $100 Monthly Covered Payroll
B7: Inforce Plan | E7: Vendor Response
A8: Class | B8: Lives | C8: Volumes | D8: Inforce | E8: ="Proposed " & B5 & " Rates" -> Proposed Rates
A9: All Employees | B9: 3840 | C9: $27,691,510 | D9: NA
A14: Monthly Cost | B14: =SUM(B9:B12) -> 3840 | C14: =SUM(C9:C12) -> $27,691,510 | E14: =SUMPRODUCT($C$9:$C$12,E9:E12)/100 -> $0
A15: Annual Cost | E15: =E14*12 -> $0
A17: Proposed Buy-up LTD - Option 1 60% - 20% participation assumption
A18: Rate Basis: Per $100 Monthly Covered Payroll - Volume from 1st Dollar
B19: Inforce Plan | E19: Vendor Response
A20: Age | B20: Lives | C20: Volumes | D20: Inforce | E20: ="Proposed " & B17 & " Rates" -> Proposed Rates
A22: <25 | B22: 17 | C22: $82,717 | D22: n/a
A23: 25-29 | B23: 61.2 | C23: $327,033 | D23: n/a
A24: 30-34 | B24: 92.8 | C24: $548,017 | D24: n/a
A25: 35-39 | B25: 107.4 | C25: $740,383 | D25: n/a
A26: 40-44 | B26: 108.4 | C26: $808,333 | D26: n/a
A27: 45-49 | B27: 96.2 | C27: $775,133 | D27: n/a
A28: 50-54 | B28: 96.4 | C28: $781,617 | D28: n/a
A29: 55-59 | B29: 77 | C29: $603,083 | D29: n/a
A30: 60-64 | B30: 64 | C30: $517,167 | D30: n/a
A31: 65-69 | B31: 35 | C31: $271,133 | D31: n/a
A32: 70-74 | B32: 9 | C32: $57,533 | D32: n/a
A33: 75+ | B33: 3.6 | C33: $26,367 | D33: n/a
A35: Monthly Cost | B35: =SUM(B21:B33) -> 768 | C35: =SUM(C21:C33) -> $5,538,517 | E35: =SUMPRODUCT(#REF!,E21:E33)/100 -> 
A36: Annual Cost | E36: =E35*12 -> 
A38: Total Annual Cost Proposed Option 1 | E38: =E36+E15 -> 
A41: Proposed LTD Plan - Option 2 60%
A42: Rate Basis: Per $100 Monthly Covered Payroll
B43: Proposed Plan | E43: Vendor Response
A44: Class | B44: Lives | C44: Volumes | D44: Inforce | E44: ="Proposed " & B41 & " Rates" -> Proposed Rates
A45: All Employees | B45: 3840 | C45: $27,692,583 | D45: NA
A50: Monthly Cost | B50: =SUM(B45:B48) -> 3840 | C50: =SUM(C45:C48) -> $27,692,583 | E50: =SUMPRODUCT($C$9:$C$12,E45:E48)/100 -> $0
A51: Annual Cost | E51: =E50*12 -> $0
E55: Vendor Response
A56: Rate Information
A57: Rate Guarantee End Date
A59: Describe underlying rate assumptions:
A60: a) Minimum enrollment assumptions:
A61: b) Minimum employer contribution levels
A62: c) Enrollment deviations +/- 15%:
A63: d) Multi-line Discount
A65: Rate Caveats
A66: Confirm Rates Include Requested Commission
A68: Note: Information provided in this RFP will be shared with an external consultant that is assisting with the evaluation.

Sheet Sheet1 (hidden)
B3: Agree
B4: Disagree
